bitfinex/quotes_ETHUSD_20241030
["timestamp","ask_amount","ask_price","bid_price","bid_amount"]
[1730269908564,3.74723,2668.7,2668.2,0.9007]
[1730269908767,7.49449,2668.7,2668.2,0.9007]
[1730269908964,3.74723,2668.7,2668.2,0.9007]
[1730269909358,3.74737,2668.6,2668.2,0.9007]
[1730269911050,3.74723,2668.7,2668.2,5.53949609]
[1730269911254,4.21,2668.8,2668.2,1.79166609]
[1730269911567,4.21,2668.8,2668.2,5.53942609]
[1730269911568,3.74715,2668.7,2668.2,5.53942609]
[1730269911768,3.74715,2668.7,2668.3,3.74768]
[1730269912339,3.74715,2668.7,2668.2,1.79166609]
[1730269912692,3.74717,2668.7,2668.2,5.53949609]
[1730269914287,7.49443,2668.7,2668.2,5.53949609]
[1730269914491,3.74717,2668.7,2668.2,5.53949609]
[1730269915782,7.49441,2668.7,2668.2,5.53949609]
[1730269916085,3.74717,2668.7,2668.2,1.79166609]
[1730269916487,3.74717,2668.7,2668.2,5.53946609]
[1730269916968,3.74717,2668.7,2668.3,0.69959535]
[1730269918588,7.49441,2668.7,2668.3,0.69959535]
[1730269918899,3.74717,2668.7,2668.3,0.69959535]
[1730269919395,7.49442,2668.7,2668.3,0.69959535]
[1730269920053,3.74717,2668.7,2668.3,0.69959535]
[1730269922110,3.74731,2668.6,2668.3,0.69959535]
[1730269922297,3.74714,2668.7,2668.2,1.79166609]
[1730269922516,3.74714,2668.7,2668.2,5.53949609]
[1730269922815,3.74714,2668.7,2668.3,0.8085]
[1730269923112,3.74714,2668.7,2668.3,4.5562]
[1730269923303,3.74714,2668.7,2668.3,0.8085]
[1730269923496,3.74714,2668.7,2668.3,1.79888035]
[1730269923805,3.74714,2668.7,2667.8,2.249]
[1730269923806,3.74791,2668.2,2667.9,0.8085]
[1730269925509,3.74767,2668.4,2667.9,0.8085]
[1730269925711,3.74758,2668.4,2668.0,5.75453739]
[1730269925876,3.74758,2668.4,2668.1,0.68378914]
[1730269926072,3.74737,2668.6,2668.2,0.8085]
[1730269926298,7.49477,2668.6,2668.2,0.8085]
[1730269926677,3.74744,2668.5,2668.2,0.8085]
[1730269928003,7.49475,2668.6,2668.2,0.8085]
[1730269928203,3.74752,2668.5,2668.2,0.8085]
[1730269928434,3.74737,2668.6,2668.2,0.8085]
[1730269928435,3.74758,2668.4,2668.2,0.8085]
[1730269929127,3.74737,2668.6,2668.2,0.8085]
[1730269929517,3.74737,2668.6,2668.2,1.08377294]
[1730269929709,3.74737,2668.6,2668.3,0.48316729]
[1730269930303,3.7471,2668.8,2668.4,0.27527294]
[1730269930524,0.8685,2668.9,2668.5,0.27527294]
[1730269930525,3.74728,2668.6,2668.5,0.27527294]
[1730269930729,3.74742,2668.5,2668.3,0.27527294]
[1730269930898,3.74742,2668.5,2668.4,0.27527294]
[1730269931098,3.74742,2668.5,2668.3,0.27527294]
[1730269931414,3.74742,2668.5,2668.4,0.27527294]
[1730269931743,3.74729,2668.6,2668.3,0.27527294]
[1730269931955,3.74729,2668.6,2668.4,0.27527294]
[1730269932124,3.74729,2668.6,2668.3,0.27527294]
[1730269932323,3.74729,2668.6,2668.4,0.27527294]
[1730269932505,3.74715,2668.7,2668.3,0.27527294]
[1730269932705,3.74715,2668.7,2668.2,2.26498739]
[1730269932706,3.74739,2668.6,2668.4,0.27527294]
[1730269932910,3.74739,2668.6,2668.3,0.27527294]
[1730269933335,3.74739,2668.6,2668.4,0.27527294]
[1730269933551,3.74739,2668.6,2668.3,0.27527294]
[1730269933729,3.74739,2668.6,2668.4,0.27527294]
[1730269933916,3.74739,2668.6,2668.3,0.27527294]
[1730269934323,3.74739,2668.6,2668.4,0.27527294]
[1730269934530,3.74739,2668.6,2668.3,0.27527294]
[1730269934947,3.74739,2668.6,2668.2,2.26498739]
[1730269935119,3.74715,2668.7,2668.3,0.27564364]
[1730269935321,3.74715,2668.7,2668.4,0.8085]
[1730269935851,3.74715,2668.7,2668.4,1.08414364]
[1730269936042,3.74715,2668.7,2668.4,0.8085]
[1730269936241,3.74715,2668.7,2668.4,1.08414364]
[1730269936555,3.74715,2668.7,2668.4,0.8085]
[1730269936727,3.74715,2668.7,2668.4,1.08414364]
[1730269936930,3.74715,2668.7,2668.5,0.27564364]
[1730269937330,3.74696,2668.9,2668.5,0.27564364]
[1730269937331,3.747,2668.8,2668.5,0.27564364]
[1730269938327,3.747,2668.8,2668.5,0.94856773]
[1730269938655,3.747,2668.8,2668.5,0.67292409]
[1730269938968,3.747,2668.8,2668.5,0.94843506]
[1730269940158,3.747,2668.8,2668.5,0.67292409]
[1730269940656,3.747,2668.8,2668.6,0.27557326]
[1730269941153,3.747,2668.8,2668.5,0.27557326]
[1730269941324,3.747,2668.8,2668.6,0.27557326]
[1730269941661,3.747,2668.8,2668.5,0.27557326]
[1730269941857,3.74696,2668.9,2668.6,0.27557326]
[1730269942156,3.74696,2668.9,2668.4,4.55598]
[1730269942360,3.74694,2668.9,2668.7,0.27562415]
[1730269942519,3.74694,2668.9,2668.5,0.92843998]
[1730269942719,3.74694,2668.9,2668.6,0.27561679]
[1730269942919,7.49393,2668.9,2668.7,0.27561679]
[1730269943120,7.49393,2668.9,2668.5,0.65282319]
[1730269943121,3.74694,2668.9,2668.6,0.27561679]
[1730269943356,3.74694,2668.9,2668.5,0.65282319]
[1730269943646,3.74694,2668.9,2668.6,0.79649908]
[1730269943852,3.74694,2668.9,2668.7,0.27561876]
[1730269944822,3.74694,2668.9,2668.6,0.52088032]
[1730269945023,3.74693,2668.9,2668.6,0.52088032]
[1730269945335,7.49391,2668.9,2668.7,0.27565267]
[1730269945660,3.74693,2668.9,2668.7,0.27565267]
[1730269945954,3.74707,2668.8,2668.5,0.65282319]
[1730269946258,3.74693,2668.9,2668.6,0.27565546]
[1730269946463,3.747,2668.8,2668.4,0.8085]
[1730269946627,3.747,2668.8,2668.5,0.49971869]
[1730269946835,3.74693,2668.9,2668.6,0.27564439]
[1730269947064,3.74693,2668.9,2668.7,0.27564439]
[1730269947236,3.74693,2668.9,2668.6,0.27564439]
[1730269947430,3.74693,2668.9,2668.7,0.27564439]
[1730269947666,3.74693,2668.9,2668.5,0.49971869]
[1730269947667,3.74693,2668.9,2668.6,0.27564439]
[1730269947849,3.74693,2668.9,2668.7,0.27564439]
[1730269948446,3.74666,2669.1,2668.7,0.27564439]
[1730269948665,3.74683,2669.0,2668.6,0.67879005]
[1730269948872,3.74683,2669.0,2668.7,0.27558262]
[1730269949181,3.74686,2668.9,2668.7,0.27558262]
[1730269949744,3.74686,2668.9,2668.7,0.27557744]
[1730269950061,3.74686,2668.9,2668.6,0.67879005]
[1730269950236,3.74686,2668.9,2668.7,1.08408141]
[1730269950435,3.74686,2668.9,2668.7,0.8085]
[1730269950674,3.74709,2668.8,2668.5,1.35731869]
[1730269950846,3.74686,2668.9,2668.6,0.27561289]
[1730269951050,7.49381,2668.9,2668.7,0.27561289]
[1730269951276,3.74686,2668.9,2668.6,0.27561308]
[1730269951434,3.74686,2668.9,2668.7,0.27561308]
[1730269951641,4.54973,2668.8,2668.6,0.27561308]
[1730269951839,3.74738,2668.6,2668.1,0.27569971]
[1730269952040,3.74743,2668.5,2668.2,0.27569971]
[1730269952268,3.74756,2668.4,2668.3,0.27569971]
[1730269952468,3.74756,2668.4,2668.1,0.27572587]
[1730269952675,3.74756,2668.4,2668.2,0.27572587]
[1730269952989,3.74756,2668.4,2668.1,0.73289972]
[1730269953376,0.8026,2668.8,2668.1,1.45648739]
[1730269953673,3.74755,2668.5,2668.2,0.27574861]
[1730269953988,3.74755,2668.5,2668.3,0.27574861]
[1730269954142,3.74755,2668.5,2668.1,1.89768517]
[1730269954347,3.74755,2668.5,2668.2,0.27572939]
[1730269954678,3.74755,2668.5,2668.3,0.27572939]
[1730269954856,3.74755,2668.5,2668.1,1.89768517]
[1730269955056,3.74755,2668.5,2668.2,0.97187256]
[1730269955244,3.74755,2668.5,2668.3,0.27570967]
[1730269955577,4.55015,2668.5,2668.2,0.27570967]
[1730269955778,3.74765,2668.4,2668.0,1.4076]
[1730269955940,3.74765,2668.4,2668.1,0.27573136]
[1730269956146,4.55015,2668.5,2668.2,0.27573136]
[1730269956376,3.7477,2668.3,2668.1,0.27573136]
[1730269956682,3.7477,2668.3,2668.2,0.27573136]
[1730269956978,3.7477,2668.3,2668.0,0.8576]
[1730269956979,3.7477,2668.3,2668.1,0.27570223]
[1730269957141,3.7477,2668.3,2668.0,0.8576]
[1730269957477,3.7477,2668.3,2668.1,0.27571721]
[1730269957685,3.74756,2668.4,2668.0,1.76383974]
[1730269958039,3.74777,2668.3,2668.1,0.27573147]
[1730269958847,3.74784,2668.2,2668.1,0.27573147]
[1730269959295,3.74784,2668.2,2668.0,0.27573147]
[1730269960176,3.74784,2668.2,2668.1,0.27573147]
[1730269960380,3.74784,2668.2,2667.9,4.45648739]
[1730269960583,3.74784,2668.2,2667.9,1.45648739]
[1730269960760,3.74784,2668.2,2668.0,0.27566825]
[1730269962154,2.25908739,2668.5,2668.0,0.27566825]
[1730269962362,3.74813,2668.0,2667.8,1.13326825]
[1730269962665,3.74813,2668.0,2667.7,1.45648739]
[1730269963014,3.74813,2668.0,2667.7,2.71011321]
[1730269963198,3.74898,2667.4,2667.1,0.8576]
[1730269963403,3.74898,2667.4,2667.1,1.13325231]
[1730269963557,7.49806,2667.4,2667.1,0.8576]
[1730269963758,3.74898,2667.4,2667.1,1.11657397]
[1730269963999,3.74898,2667.4,2666.9,1.13325231]
[1730269964200,3.74925,2667.2,2666.9,0.8576]
[1730269964401,7.49807,2667.4,2666.9,2.31408739]
[1730269964785,7.49807,2667.4,2666.9,2.58978976]
[1730269964986,3.74912,2667.3,2666.9,2.58978976]
[1730269965166,3.74912,2667.3,2666.9,3.65034282]
[1730269966386,3.74912,2667.3,2666.9,3.37464045]
[1730269968209,1.45648739,2667.5,2666.9,0.8576]
[1730269968408,0.8026,2667.7,2666.6,2.03892338]
[1730269968409,3.74975,2666.9,2666.6,2.03892338]
[1730269968574,0.8073,2666.8,2666.6,2.03892338]
[1730269968777,3.74995,2666.7,2666.6,2.03892338]
[1730269969316,4.55711,2666.8,2666.6,2.03892338]
[1730269970181,3.74995,2666.7,2666.6,2.03892338]
[1730269971989,3.74995,2666.7,2666.5,0.1297735]
[1730269972190,3.75009,2666.6,2666.5,0.1297735]
[1730269972829,3.74995,2666.7,2666.5,0.1297735]
[1730269973078,7.50001,2666.7,2666.5,0.1297735]
[1730269973395,3.74995,2666.7,2666.5,0.1297735]
[1730269973798,8.76635,2667.4,2666.8,3.74978]
[1730269973997,3.74915,2667.3,2666.8,3.74978]
[1730269974322,5.0173,2667.4,2666.6,0.8217]
[1730269974521,3.74975,2666.9,2666.6,0.8217]
[1730269974835,3.74975,2666.9,2666.5,0.1297735]
[1730269975329,4.55685,2667.0,2666.5,0.1297735]
[1730269975330,0.8073,2667.0,2666.5,0.1297735]
[1730269975530,3.75002,2666.7,2666.5,0.1297735]
[1730269976543,7.50008,2666.7,2666.5,0.1297735]
[1730269976745,3.75009,2666.6,2666.5,0.1297735]
[1730269977157,7.50011,2666.7,2666.5,0.1297735]
[1730269977325,7.50008,2666.7,2666.5,0.1297735]
[1730269977527,3.75009,2666.6,2666.5,0.1297735]
[1730269978530,3.75002,2666.7,2666.5,0.1297735]
[1730269978962,3.75009,2666.6,2666.5,0.1297735]
[1730269979854,3.75002,2666.7,2666.5,0.1297735]
[1730269980344,7.5001,2666.7,2666.5,0.1297735]
[1730269980597,3.75002,2666.7,2666.5,0.1297735]
[1730269982250,3.74967,2666.9,2666.5,0.1297735]
[1730269982632,3.74988,2666.8,2666.5,0.1297735]
[1730269983436,3.74997,2666.7,2666.5,0.1297735]
[1730269984747,7.49952,2666.9,2666.5,0.1297735]
[1730269984936,3.74975,2666.9,2666.5,0.1297735]
[1730269985337,3.74984,2666.8,2666.5,0.1297735]
[1730269987377,7.50002,2666.7,2666.5,0.1297735]
[1730269988120,3.74995,2666.7,2666.5,0.1297735]
[1730269989549,3.74976,2666.9,2666.5,0.1297735]
[1730269989750,3.7499,2666.8,2666.5,0.1297735]
[1730269989954,3.74997,2666.7,2666.5,0.1297735]
[1730269990167,3.74981,2666.8,2666.5,0.1297735]
[1730269990869,3.74976,2666.9,2666.6,0.7949]
[1730269991597,5.0713,2667.4,2666.7,4.29994]
[1730269991752,5.0713,2667.4,2666.8,0.7949]
[1730269991753,3.74921,2667.3,2666.8,0.7949]
[1730269991970,5.0713,2667.4,2666.8,0.7949]
[1730269991971,3.74935,2667.2,2666.8,0.7949]
[1730269992303,3.74953,2667.0,2666.6,8.01246335]
[1730269992657,3.74939,2667.1,2666.6,8.01246335]
[1730269993668,3.74935,2667.2,2666.6,8.01246335]
[1730269993669,3.74953,2667.0,2666.6,8.01246335]
[1730269994373,3.74953,2667.0,2666.7,0.81422369]
[1730269995481,3.74935,2667.2,2666.7,0.81422369]
[1730269995877,7.49869,2667.2,2666.7,0.81422369]
[1730269996202,3.7494,2667.1,2666.8,0.7949]
[1730269997455,3.74934,2667.2,2666.8,0.7949]
[1730269997671,7.49869,2667.2,2666.8,0.7949]
[1730269998002,3.74925,2667.2,2666.8,5.57313]
[1730269998300,3.7494,2667.1,2666.8,1.82339]
[1730269998485,3.74925,2667.2,2666.8,1.82339]
[1730269999604,10.27859293,2667.4,2666.8,1.82339]
[1730269999757,3.7491,2667.3,2666.8,1.82339]
[1730270000773,3.7491,2667.3,2666.8,5.57319]
[1730270001284,3.74926,2667.2,2666.8,5.57319]
[1730270001485,9.41729293,2667.4,2666.8,5.57319]
[1730270001698,3.74922,2667.3,2666.8,5.57319]
[1730270002403,3.74928,2667.2,2666.8,1.82339]
[1730270002897,0.8613,2668.0,2667.1,2.00827293]
[1730270003071,3.74869,2667.6,2667.2,0.7949]
[1730270004075,1.45827293,2667.8,2667.2,0.7949]
[1730270004280,3.7487,2667.6,2667.2,0.7949]
[1730270004878,3.7487,2667.6,2666.6,0.47750335]
[1730270004879,3.74899,2667.4,2666.8,0.7949]
[1730270005194,3.74899,2667.4,2667.0,3.0]
[1730270006912,3.74899,2667.4,2667.0,6.74952]
[1730270007412,3.74899,2667.4,2667.0,3.0]
[1730270008481,3.74899,2667.4,2667.0,3.27536231]
[1730270009216,3.74919,2667.3,2667.0,0.27536231]
[1730270009436,3.74873,2667.6,2667.2,0.7949]
[1730270009613,3.74883,2667.5,2667.2,0.7949]
[1730270009924,7.49753,2667.6,2667.2,0.7949]
[1730270010335,7.49751,2667.6,2667.2,0.7949]
[1730270010691,3.74873,2667.6,2667.2,0.7949]
[1730270010892,7.49754,2667.6,2667.2,0.7949]
[1730270012533,7.49751,2667.6,2667.2,0.7949]
[1730270013046,4.95141829,2673.4,2667.8,3.74829]
[1730270013047,4.21,2668.3,2667.8,3.74829]
[1730270013243,4.21,2668.3,2668.0,1.45827293]
[1730270014086,4.21,2668.3,2668.1,3.74792]
[1730270014428,4.21,2668.3,2668.0,1.45827293]
[1730270014625,4.21,2668.3,2667.9,0.8407]
[1730270014931,8.79292,2668.3,2667.9,0.8407]
[1730270015835,8.79292,2668.3,2667.8,3.0]
[1730270016140,3.74851,2667.8,2667.5,0.8407]
[1730270016345,3.74863,2667.7,2667.3,0.8407]
[1730270017343,3.74863,2667.7,2667.3,3.8407]
[1730270017510,0.749714,2667.7,2667.0,1.32270423]
[1730270017715,3.74904,2667.4,2667.0,1.32270423]
[1730270017927,3.74904,2667.4,2667.0,0.8407]
[1730270020037,3.7489,2667.5,2667.0,4.59021]
[1730270020242,3.7489,2667.5,2667.0,4.66519372]
[1730270020444,3.74907,2667.4,2667.0,0.8407]
[1730270022548,7.49783,2667.5,2667.0,0.8407]
[1730270022748,3.7489,2667.5,2667.0,0.8407]
[1730270023375,7.49783,2667.5,2667.0,0.8407]
[1730270023736,3.74899,2667.4,2667.0,0.8407]
[1730270023939,3.74874,2667.6,2667.0,5.43164553]
[1730270024169,3.74874,2667.6,2667.0,1.68221553]
[1730270024349,3.74874,2667.6,2667.1,3.74938]
[1730270026243,3.74854,2667.7,2667.1,3.74938]
[1730270026463,3.74882,2667.6,2667.2,0.54315955]
[1730270026643,3.74881,2667.6,2667.0,8.35668778]
[1730270027565,3.74881,2667.6,2667.1,3.74937]
[1730270028164,3.7488,2667.6,2667.1,3.74937]
[1730270029681,3.74876,2667.6,2667.1,3.74937]
[1730270030742,3.74886,2667.5,2667.0,8.35670778]
[1730270030940,3.74886,2667.5,2667.1,4.21063178]
[1730270032072,4.5837,2667.8,2667.1,4.21063178]
[1730270032269,3.74866,2667.7,2667.1,4.96001178]
[1730270032450,3.74866,2667.7,2667.1,8.70939178]
[1730270032644,3.74866,2667.7,2667.1,4.96001178]
[1730270032949,3.74874,2667.6,2667.1,4.96001178]
[1730270033923,3.74886,2667.5,2667.1,1.21063178]
[1730270034629,3.74897,2667.4,2667.1,1.21063178]
[1730270034838,3.74906,2667.4,2667.0,3.8407]
[1730270035120,3.74911,2667.3,2667.0,0.8407]
[1730270036611,3.74863,2667.7,2667.1,3.74939]
[1730270036940,3.7487,2667.6,2667.1,7.49878]
[1730270037134,3.7487,2667.6,2667.1,4.61087009]
[1730270041032,3.74896,2667.5,2667.1,0.86148009]
[1730270041233,3.74896,2667.5,2667.0,4.59023]
[1730270041427,3.7487,2667.6,2667.1,3.74937]
[1730270042657,7.4975,2667.6,2667.1,3.74937]
[1730270043131,3.7487,2667.6,2667.1,3.74937]
[1730270043632,7.49747,2667.6,2667.1,3.74937]
[1730270043952,3.7487,2667.6,2667.1,4.75665026]
[1730270044155,3.7487,2667.6,2667.2,0.8718]
[1730270044368,4.5837,2667.8,2667.2,4.62103]
[1730270044520,3.74859,2667.7,2667.2,4.62103]
[1730270044922,4.5837,2667.8,2667.2,4.62103]
[1730270045138,3.74872,2667.6,2667.2,4.89650019]
[1730270045418,3.74872,2667.6,2667.2,5.91340248]
[1730270045667,3.74872,2667.6,2667.2,5.63793229]
[1730270045862,4.5837,2667.8,2667.2,5.63793229]
[1730270046045,3.7485,2667.8,2667.3,4.02454983]
[1730270046367,3.74821,2668.0,2667.5,3.74879]
[1730270046658,3.74821,2668.0,2667.5,4.97097817]
[1730270046861,3.74821,2668.0,2667.6,0.87197982]
[1730270050067,3.74826,2667.9,2667.5,0.8718]
[1730270052185,3.74841,2667.8,2667.5,0.8718]
[1730270052342,3.74857,2667.7,2667.5,0.8718]
[1730270052861,3.74857,2667.7,2667.3,1.14715874]
[1730270053182,3.74857,2667.7,2666.6,0.01]
[1730270053183,0.8559,2667.4,2666.6,0.8718]
[1730270053397,3.74989,2666.8,2666.7,0.27554913]
[1730270053958,3.74927,2667.2,2666.8,0.8718]
[1730270054154,7.95909,2667.4,2666.8,4.62153]
[1730270054397,3.74912,2667.3,2666.9,0.48970791]
[1730270054696,5.66767421,2667.4,2666.8,0.8718]
[1730270054904,3.74954,2667.0,2666.7,0.27554913]
[1730270055066,0.8559,2667.3,2666.7,0.27554913]
[1730270055067,3.74934,2667.2,2666.7,0.27554913]
[1730270055269,3.7494,2667.1,2666.7,0.27554913]
[1730270056873,3.74934,2667.2,2666.7,0.27554913]
[1730270058476,7.49868,2667.2,2666.7,0.27554913]
[1730270058715,3.74934,2667.2,2666.7,0.27554913]
[1730270058891,7.49868,2667.2,2666.7,0.27554913]
[1730270059304,3.74934,2667.2,2666.7,0.27554913]
[1730270059542,7.49869,2667.2,2666.7,0.27554913]
[1730270059690,3.74939,2667.1,2666.7,0.27554913]
[1730270060721,3.74934,2667.2,2666.7,0.27554913]
[1730270060890,3.74967,2666.9,2666.7,0.27554913]
[1730270061219,3.74981,2666.8,2666.7,0.27554913]
[1730270061617,4.60557,2666.9,2666.7,0.27554913]
[1730270061781,3.74967,2666.9,2666.7,0.27554913]
[1730270062507,3.74967,2666.9,2666.5,0.1297735]
[1730270062712,7.49946,2666.9,2666.5,0.1297735]
[1730270062911,3.74967,2666.9,2666.5,0.1297735]
[1730270064318,7.49946,2666.9,2666.5,0.1297735]
[1730270064519,3.74967,2666.9,2666.5,0.1297735]
[1730270064726,0.8559,2666.8,2666.5,0.1297735]
[1730270065914,4.60582,2666.8,2666.5,0.1297735]
[1730270068810,3.75009,2666.6,2666.5,0.1297735]
[1730270069146,4.60582,2666.8,2666.5,0.1297735]
[1730270070345,3.74995,2666.7,2666.5,0.1297735]
[1730270070736,6.05942421,2666.7,2666.5,0.1297735]
[1730270070959,4.60189,2666.6,2666.5,0.1297735]
[1730270072367,7.61189,2666.6,2666.5,0.1297735]
[1730270073645,7.61189,2666.6,2665.8,2.04290222]
[1730270073646,3.75107,2665.9,2665.8,2.04290222]
[1730270073853,4.60287,2665.9,2665.8,2.04290222]
[1730270074473,6.06054421,2665.9,2665.8,2.04290222]
[1730270074674,7.04169363,2665.9,2665.8,2.04290222]
[1730270074837,3.75167,2665.5,2665.1,3.834]
[1730270075038,3.75167,2665.5,2665.1,0.834]
[1730270075280,7.5034,2665.5,2665.1,0.834]
[1730270075572,3.75167,2665.5,2665.1,0.834]
[1730270075749,3.75167,2665.5,2665.1,1.4423417]
[1730270076133,3.75145,2665.7,2665.1,1.4423417]
[1730270076471,3.75145,2665.7,2665.1,5.1944517]
[1730270076771,6.06064421,2665.9,2665.3,1.45767421]
[1730270076772,3.75116,2665.9,2665.3,1.45767421]
[1730270076944,3.75116,2665.9,2665.4,1.36246676]
[1730270077350,3.75124,2665.8,2665.4,1.36246676]
[1730270077676,1.45767421,2666.0,2665.2,3.0]
[1730270077860,3.75135,2665.8,2665.2,3.0]
[1730270078197,3.75151,2665.6,2665.2,3.0]
[1730270078916,3.75135,2665.8,2665.2,3.0]
[1730270079097,3.75143,2665.7,2665.3,3.0]
[1730270079485,0.8518,2666.1,2665.3,3.0]
[1730270079486,4.60338,2665.6,2665.3,3.0]
[1730270079683,4.60338,2665.6,2665.1,3.0]
[1730270080022,4.60338,2665.6,2665.1,6.75218]
[1730270080914,4.60338,2665.6,2665.1,3.0]
[1730270081121,4.60338,2665.6,2665.1,6.75217]
[1730270081616,0.8518,2665.6,2665.2,3.75205]
[1730270081823,0.8518,2665.6,2665.3,3.0]
[1730270083692,3.75136,2665.7,2665.3,3.0]
[1730270084828,8.35442,2665.8,2665.3,3.0]
[1730270086294,3.7515,2665.6,2665.0,0.03949284]
[1730270086499,3.75199,2665.3,2665.0,0.03949284]
[1730270086805,3.75199,2665.3,2664.9,0.834]
[1730270087010,4.55799,2665.3,2664.9,0.834]
[1730270087329,4.55799,2665.3,2664.7,0.7889]
[1730270087528,3.75227,2665.1,2664.7,0.7889]
[1730270088433,5.013809,2665.3,2664.7,0.7889]
[1730270088434,3.75242,2665.0,2664.7,0.7889]
[1730270090230,3.75265,2664.8,2664.1,4.54241]
[1730270090429,3.75265,2664.8,2664.2,3.75345]
[1730270090634,3.75265,2664.8,2664.3,3.75326]
[1730270091397,0.806,2664.9,2664.4,3.75317]
[1730270091593,3.75244,2665.0,2664.5,0.7889]
[1730270091831,3.75244,2665.0,2664.5,4.54193]
[1730270092343,3.75256,2664.9,2664.5,0.7889]
[1730270092688,7.596,2665.4,2664.6,3.7528]
[1730270092921,3.75199,2665.3,2664.7,4.20684]
[1730270093230,3.75199,2665.3,2664.8,3.75261]
[1730270094295,3.75206,2665.2,2664.7,3.75276]
[1730270094528,3.75206,2665.2,2664.5,8.29487]
[1730270094743,3.75206,2665.2,2664.6,3.75286]
[1730270094944,3.75223,2665.1,2664.5,8.29481]
[1730270095626,0.806,2665.0,2664.5,4.54185]
[1730270095831,4.55846,2665.0,2664.5,0.7889]
[1730270096001,4.55846,2665.0,2664.5,4.54194]
[1730270096329,0.806,2665.0,2664.5,4.54194]
[1730270096532,4.5584,2665.0,2664.5,4.54194]
[1730270097114,4.55835,2665.0,2664.5,4.54194]
[1730270097516,0.806,2665.0,2664.6,3.75289]
[1730270097755,3.75208,2665.2,2664.6,4.96493394]
[1730270097920,3.75208,2665.2,2664.7,3.75268]
[1730270098115,3.75208,2665.2,2664.8,3.75261]
[1730270098630,4.55792,2665.3,2664.8,3.75261]
[1730270098827,3.75206,2665.2,2664.8,3.75261]
[1730270099855,4.55793,2665.3,2664.8,3.75261]
[1730270100023,0.806,2665.3,2664.8,4.14588581]
[1730270100559,0.806,2665.3,2664.9,3.75239]
[1730270100720,3.75186,2665.4,2664.9,4.56149]
[1730270102346,3.75185,2665.4,2664.9,4.56149]
[1730270102663,4.21,2665.6,2665.2,3.75204]
[1730270102822,4.21,2665.6,2665.3,0.8091]
[1730270103020,3.75089,2666.1,2665.5,3.75164]
[1730270103250,3.75072,2666.2,2665.6,3.75136]
[1730270103565,3.75079,2666.2,2665.6,4.56058]
[1730270103730,3.75088,2666.1,2665.6,4.56058]
[1730270104464,3.75079,2666.2,2665.7,3.75135]
[1730270104673,7.85456412,2666.3,2665.6,0.8091]
[1730270104963,7.85456412,2666.3,2665.4,3.0]
[1730270104964,0.8423,2665.5,2665.2,3.0]
[1730270105855,4.59394,2665.5,2664.9,4.56147]
[1730270106055,3.75181,2665.4,2664.9,3.8091]
[1730270106264,3.75181,2665.4,2664.9,3.0]
[1730270106460,3.75181,2665.4,2664.8,3.75254]
[1730270106461,7.50371,2665.4,2664.8,3.75254]
[1730270106761,3.75181,2665.4,2664.8,3.75254]
[1730270107529,3.75181,2665.4,2664.9,3.75248]
[1730270107736,3.75181,2665.4,2664.9,3.0]
[1730270107933,3.72104512,2665.4,2664.6,3.7528]
[1730270108138,3.75207,2665.2,2664.6,3.7528]
[1730270108560,3.75207,2665.2,2664.6,7.50561]
[1730270108969,7.96153,2665.6,2664.5,0.8091]
[1730270108970,4.21,2665.6,2664.7,2.249]
[1730270109186,4.21,2665.6,2665.5,3.75164]
[1730270111749,4.21,2665.6,2665.4,3.75178]
[1730270112956,0.8423,2665.5,2665.2,3.0]
[1730270113355,7.96157,2665.6,2665.2,3.0]
[1730270113564,4.21,2665.6,2665.3,3.75188]
[1730270113743,4.21,2665.6,2665.2,3.0]
[1730270114362,4.21,2665.6,2665.2,6.75203]
[1730270114938,4.21,2665.6,2665.3,3.75188]
[1730270115136,4.21,2665.6,2665.2,3.0]
[1730270115340,4.21,2665.6,2665.2,3.27540813]
[1730270115541,4.21,2665.6,2665.2,3.0]
[1730270115740,7.9615,2665.6,2665.2,3.0]
[1730270115989,4.21,2665.6,2665.5,3.75164]
[1730270116153,3.75058,2666.3,2665.7,3.75126]
[1730270116636,3.75058,2666.3,2665.8,3.75119]
[1730270116841,4.55307,2666.4,2665.9,3.75106]
[1730270117074,0.830336,2666.3,2665.9,3.75106]
[1730270117275,0.830336,2666.3,2665.8,4.55549]
[1730270118069,4.580866,2666.3,2665.8,4.55549]
[1730270118250,4.580866,2666.3,2665.8,4.55544]
[1730270118453,4.580866,2666.3,2665.9,3.75107]
[1730270118658,4.580866,2666.3,2665.8,0.8043]
[1730270119046,4.580866,2666.3,2665.8,4.55544]
[1730270119556,0.8027,2666.6,2666.1,3.26163412]
[1730270119891,4.21,2666.7,2666.3,0.8043]
[1730270120059,4.21,2666.7,2666.5,3.75011]
[1730270120254,4.21,2666.7,2665.9,3.0]
[1730270120255,0.8027,2666.6,2665.9,3.0]
[1730270120458,3.75038,2666.4,2665.9,3.27509322]
[1730270120655,3.75038,2666.4,2665.9,3.0]
[1730270120871,4.97383,2666.6,2665.9,3.75107]
[1730270121054,4.21,2666.7,2666.3,3.75046]
[1730270121259,4.21,2666.7,2666.4,3.75035]
[1730270122746,4.21,2666.7,2666.1,4.555]
[1730270122951,4.21,2666.7,2666.2,3.75053]
[1730270123147,4.21,2666.7,2666.3,3.75041]
[1730270124388,4.21,2666.7,2666.4,3.75034]
[1730270125164,4.21,2666.7,2666.6,3.75009]
[1730270125694,4.21,2666.7,2666.6,0.8043]
[1730270125991,4.21,2666.7,2666.5,3.75013]
[1730270126288,4.21,2666.7,2666.3,7.50084]
[1730270126489,4.21,2666.7,2666.4,3.75035]
[1730270127691,4.21,2666.7,2666.4,3.75028]
[1730270127850,4.21,2666.7,2666.4,4.500346]
[1730270128055,4.21,2666.7,2666.4,3.75028]
[1730270128492,4.21,2666.7,2666.3,3.7505]
[1730270128990,4.21,2666.7,2666.3,7.50092]